bitfinex/quotes_BTCUSD_20220212
["timestamp","ask_amount","ask_price","bid_price","bid_amount"]
[1644668182978,1.08935885,42362.0,42361.0,0.00398015]
[1644668185128,0.83846457,42362.0,42361.0,0.00398015]
[1644668186630,0.19491995,42360.0,42359.0,0.0011]
[1644668186828,0.80972101,42360.0,42359.0,0.00160278]
[1644668187030,0.36397464,42360.0,42359.0,0.00160278]
[1644668187228,0.46397464,42360.0,42359.0,0.00160278]
[1644668187929,0.46397464,42360.0,42359.0,0.0011]
[1644668188569,0.8173,42360.0,42358.0,0.00133503]
[1644668188773,1.24788397,42360.0,42358.0,0.0011]
[1644668188970,1.090095,42360.0,42358.0,0.0011]
[1644668189569,0.3296,42359.0,42358.0,0.0011]
[1644668189774,0.4769,42359.0,42358.0,0.0011]
[1644668191275,0.75,42358.0,42354.0,0.00043782]
[1644668191474,0.75,42356.0,42351.0,0.01083782]
[1644668191672,0.156365,42355.0,42351.0,0.01083782]
[1644668191924,0.206365,42355.0,42351.0,0.01083782]
[1644668192319,0.05,42354.0,42351.0,0.01083782]
[1644668192520,0.0473,42353.0,42351.0,0.01083782]
[1644668192720,0.156371,42353.0,42351.0,0.01083782]
[1644668192920,0.0973,42353.0,42351.0,0.01083782]
[1644668193119,0.1473,42353.0,42351.0,0.01083782]
[1644668193319,0.05,42352.0,42351.0,0.01083782]
[1644668193520,0.0973,42352.0,42351.0,0.01083782]
[1644668193825,0.1473,42352.0,42351.0,0.01083782]
[1644668195871,0.209065,42355.0,42352.0,0.25637249]
[1644668196070,0.0473,42354.0,42353.0,0.0001]
[1644668196271,0.209065,42355.0,42353.0,4e-05]
[1644668196670,0.109065,42355.0,42353.0,4e-05]
[1644668197369,0.05,42354.0,42353.0,4e-05]
[1644668200222,0.8098758,42361.0,42353.0,4e-05]
[1644668200223,0.119,42363.0,42353.0,4e-05]
[1644668200422,0.25131899,42364.0,42355.0,0.06915421]
[1644668200423,0.00050219,42364.0,42355.0,0.06915421]
[1644668200621,0.00050219,42364.0,42353.0,4e-05]
[1644668201024,0.2508168,42366.0,42355.0,0.19446851]
[1644668201421,0.059046,42363.0,42355.0,0.19446851]
[1644668201628,0.00050222,42364.0,42356.0,4e-05]
[1644668202322,0.2508168,42366.0,42356.0,4e-05]
[1644668202521,0.059045,42363.0,42356.0,4e-05]
[1644668202722,0.059045,42363.0,42356.0,0.28621892]
[1644668202922,0.059045,42363.0,42357.0,4e-05]
[1644668203974,0.00048291,42364.0,42357.0,4e-05]
[1644668204371,0.00048291,42364.0,42356.0,0.30398245]
[1644668204571,0.00048291,42364.0,42361.0,0.23063343]
[1644668204771,0.2508168,42365.0,42362.0,4e-05]
[1644668204972,0.00048291,42364.0,42362.0,4e-05]
[1644668205873,0.2508168,42365.0,42362.0,4e-05]
[1644668206074,0.2508168,42365.0,42357.0,4e-05]
[1644668206372,0.25109103,42365.0,42356.0,4e-05]
[1644668207017,0.2508168,42365.0,42358.0,0.26873304]
[1644668207216,0.2508168,42365.0,42359.0,4e-05]
[1644668207418,0.00046532,42364.0,42359.0,4e-05]
[1644668207617,0.059048,42363.0,42359.0,4e-05]
[1644668208018,0.059048,42363.0,42357.0,4e-05]
[1644668208216,0.059048,42363.0,42356.0,0.00027493]
[1644668208416,0.3508168,42365.0,42356.0,4e-05]
[1644668208618,0.00046532,42364.0,42356.0,0.00027493]
[1644668209020,0.059048,42362.0,42356.0,0.00027493]
[1644668209220,0.3598648,42362.0,42356.0,4e-05]
[1644668209421,0.4598648,42362.0,42356.0,0.00027493]
[1644668209618,0.4598648,42362.0,42356.0,4e-05]
[1644668210220,0.4008168,42362.0,42356.0,4e-05]
[1644668210421,0.05,42362.0,42360.0,0.21862931]
[1644668210671,0.05,42362.0,42361.0,4e-05]
[1644668210869,0.2508168,42363.0,42361.0,4e-05]
[1644668210870,0.3008168,42363.0,42361.0,4e-05]
[1644668213173,0.05,42363.0,42361.0,4e-05]
[1644668213374,0.00046705,42364.0,42361.0,4e-05]
[1644668214425,0.75,42364.0,42360.0,0.21856931]
[1644668214818,0.85,42364.0,42360.0,0.21856931]
[1644668215822,0.75046697,42364.0,42360.0,0.21856931]
[1644668216723,0.75,42364.0,42360.0,0.21856931]
[1644668216923,0.75046697,42364.0,42360.0,0.21856931]
[1644668217325,0.00046697,42364.0,42360.0,0.21856931]
[1644668217525,0.30107238,42363.0,42360.0,0.21856931]
[1644668217726,0.35107238,42363.0,42360.0,0.21856931]
[1644668218172,0.25107915,42361.0,42360.0,0.21856931]
[1644668218371,0.30107915,42361.0,42360.0,0.21856931]
[1644668219576,0.30107915,42361.0,42360.0,0.21866931]
[1644668220173,0.30107915,42361.0,42360.0,0.0001]
[1644668220375,0.36012915,42361.0,42356.0,0.00033493]
[1644668220577,0.30107915,42361.0,42356.0,0.0001]
[1644668220775,0.30107915,42361.0,42356.0,0.00033493]
[1644668220974,0.30107915,42361.0,42356.0,0.0001]
[1644668221174,0.05,42361.0,42357.0,0.23645709]
[1644668221375,0.05,42361.0,42358.0,0.0001]
[1644668221576,0.25107915,42362.0,42358.0,0.0001]
[1644668221577,0.30107915,42362.0,42358.0,0.0001]
[1644668221775,0.30107915,42362.0,42358.0,0.00033493]
[1644668222019,0.30107915,42362.0,42358.0,0.0001]
[1644668222219,0.30107915,42362.0,42358.0,0.00033493]
[1644668223219,0.30106449,42362.0,42358.0,0.00033493]
[1644668223619,0.25106449,42362.0,42358.0,0.00033493]
[1644668223820,0.30106449,42362.0,42358.0,0.00033493]
[1644668224621,0.30106449,42362.0,42354.0,0.00046707]
[1644668224622,0.25106449,42360.0,42356.0,0.00023493]
[1644668224822,0.31011649,42359.0,42355.0,0.00023493]
[1644668225026,0.36011649,42359.0,42355.0,0.00023493]
[1644668225223,0.05,42358.0,42354.0,0.00046706]
[1644668225525,0.30106449,42358.0,42354.0,0.00046706]
[1644668225771,0.30106449,42358.0,42354.0,0.00070199]
[1644668225969,0.05,42358.0,42354.0,0.00046706]
[1644668226369,0.30106449,42358.0,42353.0,0.00033493]
[1644668226572,0.30106449,42358.0,42354.0,0.00046705]
[1644668227474,0.30106449,42358.0,42353.0,0.00033493]
[1644668227674,0.30106449,42358.0,42354.0,0.00046705]
[1644668228072,0.05,42358.0,42354.0,0.00046705]
[1644668228676,0.05,42358.0,42353.0,0.00033493]
[1644668228873,0.05,42358.0,42354.0,0.00046705]
[1644668228874,0.33600229,42357.0,42354.0,0.00046705]
[1644668229079,0.30127738,42355.0,42354.0,0.00033244]
[1644668229275,0.727751,42355.0,42354.0,0.00033244]
[1644668229524,0.777751,42355.0,42354.0,0.00033244]
[1644668229924,0.77778763,42355.0,42353.0,0.00033493]
[1644668230122,0.77778763,42355.0,42353.0,0.0001]
[1644668230123,0.58127053,42354.0,42353.0,0.0001]
[1644668230327,0.68127053,42354.0,42353.0,0.0001]
[1644668230623,0.37995652,42354.0,42353.0,0.0001]
[1644668231125,0.24432,42354.0,42353.0,0.0001]
[1644668231324,0.54563401,42354.0,42353.0,0.0001]
[1644668231525,0.44563401,42354.0,42353.0,0.0001]
[1644668231723,0.54563401,42354.0,42353.0,0.0001]
[1644668232322,0.24432,42354.0,42353.0,0.0001]
[1644668232928,0.14432,42354.0,42353.0,0.0001]
[1644668233368,0.41387445,42354.0,42353.0,0.0001]
[1644668233571,0.51387445,42354.0,42353.0,0.0001]
[1644668233970,0.6746429,42354.0,42353.0,0.0001]
[1644668234369,0.51387445,42354.0,42353.0,0.0001]
[1644668234572,0.6746429,42354.0,42353.0,0.0001]
[1644668234769,0.51387445,42354.0,42353.0,0.0001]
[1644668234971,0.6746429,42354.0,42353.0,0.0001]
[1644668235368,0.51387445,42354.0,42353.0,0.0001]
[1644668235572,0.6746429,42354.0,42353.0,0.0001]
[1644668235771,0.51387445,42354.0,42353.0,0.0001]
[1644668237419,0.57294345,42354.0,42353.0,0.0001]
[1644668237622,0.6462624,42354.0,42353.0,4e-05]
[1644668238019,0.7053394,42354.0,42352.0,0.25637249]
[1644668238222,0.12331895,42353.0,42352.0,0.25637249]
[1644668238418,0.17061895,42353.0,42352.0,0.25637249]
[1644668238622,0.0973,42353.0,42352.0,0.25637249]
[1644668238821,0.44876547,42353.0,42352.0,0.25637249]
[1644668239122,0.0973,42353.0,42352.0,0.25637249]
[1644668239323,0.1973,42353.0,42352.0,0.25637249]
[1644668240323,0.156369,42353.0,42352.0,0.25637249]
[1644668241172,0.7362727,42353.0,42352.0,0.25637249]
[1644668241375,0.256369,42353.0,42352.0,0.25637249]
[1644668241574,0.1973,42353.0,42352.0,0.25637249]
[1644668242675,0.36434081,42353.0,42352.0,0.25637249]
[1644668242875,0.46434081,42353.0,42352.0,0.25637249]
[1644668243277,0.256372,42353.0,42352.0,0.25637249]
[1644668243974,0.156372,42353.0,42352.0,0.25637249]
[1644668244819,0.42070695,42353.0,42352.0,0.25637249]
[1644668245218,0.52070695,42353.0,42352.0,0.25637249]
[1644668245621,0.809083,42352.0,42346.0,0.00251932]
[1644668245821,0.69170936,42349.0,42346.0,0.00251932]
[1644668246019,0.78900936,42349.0,42346.0,0.00251932]
[1644668246220,0.93900936,42349.0,42346.0,0.00251932]
[1644668246822,1.09977781,42349.0,42346.0,0.00251932]
[1644668247023,0.93900936,42349.0,42346.0,0.00251932]
[1644668247224,1.09977781,42349.0,42346.0,0.00251932]
[1644668248372,1.19328781,42349.0,42346.0,0.00251932]
[1644668248571,1.07684936,42349.0,42346.0,0.00251932]
[1644668248769,1.27226476,42349.0,42346.0,0.00251932]
[1644668249169,1.27226476,42349.0,42348.0,0.00062807]
[1644668249772,1.07374724,42349.0,42348.0,0.00062807]
[1644668249975,0.98211963,42349.0,42348.0,0.00062807]
[1644668250172,0.40357527,42349.0,42348.0,0.00062807]
[1644668250371,0.24418239,42349.0,42348.0,0.00062807]
[1644668250770,0.14418239,42349.0,42348.0,0.00062807]
[1644668251773,0.4309681,42349.0,42348.0,0.00062807]
[1644668252027,0.4309681,42349.0,42348.0,0.00041786]
[1644668252227,0.5309681,42349.0,42348.0,0.00041786]
[1644668252725,0.94380139,42349.0,42348.0,0.00041786]
[1644668252925,0.84903018,42349.0,42348.0,0.00041786]
[1644668253131,0.74102374,42349.0,42348.0,0.00041786]
[1644668253327,1.008382,42349.0,42348.0,0.00041786]
[1644668253528,1.008382,42349.0,42341.0,0.01]
[1644668253529,0.59165112,42349.0,42341.0,0.01]
[1644668253729,0.3796,42345.0,42337.0,0.0031079]
[1644668253928,0.3796,42345.0,42337.0,0.0011]
[1644668253929,0.30113461,42339.0,42337.0,0.0011]
[1644668254127,0.34843461,42339.0,42337.0,0.0011]
[1644668254326,0.49843461,42339.0,42337.0,0.0011]
[1644668254531,0.75,42338.0,42335.0,0.0005]
[1644668254728,0.0473,42337.0,42335.0,0.0005]
[1644668255027,0.165479,42337.0,42335.0,0.0005]
[1644668255227,0.1,42336.0,42335.0,0.0005]
[1644668255429,0.1473,42336.0,42335.0,0.0005]
[1644668256074,0.46215645,42336.0,42332.0,0.0021]
[1644668256272,0.286415,42335.0,42332.0,0.0021]
[1644668256471,0.0473,42334.0,42332.0,0.0021]
[1644668256670,0.2930851,42333.0,42332.0,0.0021]
[1644668256874,0.3403851,42333.0,42332.0,0.0021]
[1644668257274,0.44226749,42333.0,42332.0,0.0021]
[1644668257674,0.35608233,42333.0,42332.0,0.0021]
[1644668257876,0.35608233,42333.0,42331.0,0.0111]
[1644668257877,0.23337239,42333.0,42331.0,0.0111]
[1644668258276,0.13337239,42333.0,42331.0,0.0111]
[1644668259274,0.04918239,42333.0,42331.0,0.0111]
[1644668259928,0.30506134,42332.0,42331.0,0.0111]
[1644668260124,0.35236134,42332.0,42331.0,0.0111]
[1644668260323,0.45236134,42332.0,42331.0,0.0111]
[1644668260524,0.45424373,42332.0,42331.0,0.0111]
[1644668261923,0.75,42331.0,42330.0,0.00133314]
[1644668262125,1.20542658,42331.0,42330.0,0.0011]
[1644668262324,1.30542658,42331.0,42330.0,0.0011]
[1644668263684,1.30730897,42331.0,42330.0,0.0011]
[1644668263888,1.30730897,42331.0,42329.0,0.00427126]
[1644668263889,1.30828639,42331.0,42329.0,0.00427126]
[1644668264086,0.3,42330.0,42329.0,0.00403812]
[1644668264282,0.0473,42330.0,42329.0,0.00403812]
[1644668265384,0.0473,42330.0,42329.0,0.00183812]
[1644668266183,0.36803248,42330.0,42329.0,0.00183812]
[1644668266388,0.46803248,42330.0,42329.0,0.00183812]
[1644668266784,0.46991487,42330.0,42329.0,0.00183812]
[1644668267722,0.75,42329.0,42324.0,0.0011]
[1644668267927,0.14521472,42328.0,42324.0,0.0011]
[1644668268123,0.85106358,42327.0,42318.0,0.84898679]
[1644668268321,0.05,42325.0,42318.0,0.84898679]
[1644668268521,0.0473,42324.0,42316.0,0.3877]
[1644668268724,0.0473,42324.0,42317.0,0.0023]
[1644668268925,0.156407,42324.0,42317.0,0.0023]
[1644668269924,0.42821908,42324.0,42317.0,0.0023]
[1644668270325,0.256407,42324.0,42317.0,0.0023]
[1644668270525,0.00188239,42323.0,42317.0,0.0023]
[1644668270770,0.0473,42322.0,42317.0,0.0023]
[1644668270970,0.00188239,42323.0,42322.0,0.09283893]
[1644668272480,8.239e-05,42323.0,42322.0,0.09283893]
[1644668272675,0.05049661,42325.0,42323.0,0.75]
[1644668272676,0.00049661,42325.0,42323.0,0.75]
[1644668272873,0.00049661,42325.0,42324.0,0.05]
[1644668273073,0.00049661,42325.0,42324.0,0.33505785]
[1644668273274,0.05,42337.0,42324.0,0.33505785]
[1644668273474,0.0004966,42327.0,42324.0,0.33505785]
[1644668273673,0.0004966,42327.0,42326.0,0.24701276]
[1644668274531,0.059089,42334.0,42324.0,0.33505785]
[1644668274732,0.00049659,42329.0,42324.0,0.33505785]
[1644668275229,0.00049659,42329.0,42324.0,0.38505785]
[1644668275429,0.00049659,42329.0,42326.0,0.22674698]
[1644668275630,0.05,42337.0,42326.0,0.22674698]
[1644668275831,0.00049659,42329.0,42326.0,0.22674698]
[1644668276331,0.00049659,42329.0,42324.0,0.33505785]
[1644668276332,0.05958959,42329.0,42324.0,0.33505785]
[1644668276734,0.059093,42329.0,42324.0,0.33505785]
[1644668277236,0.00049659,42329.0,42328.0,0.05]
[1644668277632,0.00049659,42329.0,42326.0,0.0473]
[1644668278032,0.05,42337.0,42328.0,0.29027966]
[1644668278329,0.00049658,42330.0,42328.0,0.29027966]
[1644668278528,0.00049658,42330.0,42328.0,0.28777966]
[1644668279133,0.05,42337.0,42328.0,0.24027966]
[1644668279331,0.05,42337.0,42334.0,0.24439051]
[1644668279731,0.05,42337.0,42335.0,0.28806569]
[1644668280128,0.0225,42337.0,42336.0,0.0475]
[1644668280331,0.06484683,42350.0,42336.0,0.34904472]
[1644668280332,0.05,42346.0,42336.0,0.34904472]
[1644668280532,0.05,42346.0,42341.0,0.19311087]
[1644668280729,0.05,42346.0,42335.0,0.0473]
[1644668280929,0.059073,42345.0,42335.0,0.0473]
[1644668281432,0.11815,42345.0,42332.0,0.0475]
[1644668281628,0.11815,42345.0,42334.0,0.08585313]
[1644668281830,0.00049652,42342.0,42334.0,0.3054208]
[1644668282931,0.05,42346.0,42341.0,0.0757599]
[1644668283229,0.05,42346.0,42345.0,0.25389261]
[1644668284832,0.05,42346.0,42342.0,0.18972782]
[1644668285032,0.05,42346.0,42341.0,0.0757599]
[1644668285432,0.05027641,42346.0,42341.0,0.0757599]
[1644668285871,0.05027641,42346.0,42342.0,0.20092515]
[1644668286475,0.109071,42346.0,42342.0,0.20092515]
[1644668286675,0.10934741,42346.0,42342.0,0.20092515]
[1644668287374,0.05027641,42346.0,42342.0,0.20092515]
[1644668287573,0.05,42346.0,42342.0,0.20092515]
[1644668287777,0.059074,42345.0,42342.0,0.20092515]
[1644668288175,0.05049695,42346.0,42342.0,0.20092515]
[1644668288776,0.05,42346.0,42338.0,0.2502546]
[1644668288979,0.05049695,42346.0,42338.0,0.25002343]
[1644668289922,0.059073,42345.0,42341.0,0.33604267]
[1644668290323,0.00049696,42344.0,42341.0,0.33604267]
[1644668291122,0.059073,42345.0,42338.0,0.25002343]
[1644668291424,0.11864896,42345.0,42336.0,0.00023117]
[1644668291625,0.11864896,42345.0,42335.0,0.30023117]
[1644668291822,0.11864896,42345.0,42335.0,0.29755711]
[1644668292227,0.05956996,42345.0,42343.0,0.21507778]
[1644668292424,0.059073,42345.0,42343.0,0.21507778]
[1644668293025,0.45113461,42346.0,42343.0,0.21507778]
[1644668293476,0.35113461,42346.0,42343.0,0.21507778]
[1644668293677,0.05,42346.0,42343.0,0.21507778]
[1644668295479,0.00049695,42347.0,42344.0,0.0475]
[1644668295888,0.00049695,42347.0,42345.0,0.0473]
[1644668296082,0.30113461,42355.0,42345.0,0.1599]
[1644668296282,0.00049694,42348.0,42347.0,0.0475]
[1644668296479,0.00049694,42348.0,42347.0,0.0948]
[1644668296680,0.00049694,42348.0,42347.0,0.0473]
[1644668297125,0.40113461,42355.0,42347.0,0.0473]
[1644668297525,0.00049693,42350.0,42347.0,0.0473]
[1644668298126,0.00049693,42350.0,42349.0,0.06917507]
[1644668298324,0.30113461,42355.0,42349.0,0.06917507]
[1644668298528,0.30113461,42358.0,42354.0,0.0475]
[1644668298727,0.0001,42367.0,42354.0,0.0475]
[1644668298728,0.30113461,42361.0,42354.0,0.0475]
[1644668299024,0.30113461,42362.0,42353.0,0.12844]
[1644668299224,0.30113461,42362.0,42356.0,0.22872707]
[1644668299423,0.30113461,42362.0,42356.0,0.4875556]
[1644668299826,0.00049687,42361.0,42356.0,0.4875556]
[1644668300327,0.00049687,42361.0,42357.0,0.07062053]
[1644668300526,0.00049687,42361.0,42356.0,0.4875556]
[1644668300784,0.05,42363.0,42356.0,0.4875556]
[1644668300983,0.00049687,42361.0,42356.0,0.4875556]
[1644668303189,0.1,42363.0,42356.0,0.4875556]
[1644668303388,0.00049687,42361.0,42356.0,0.4875556]
[1644668303788,0.05954687,42361.0,42356.0,0.4875556]
[1644668304188,0.00049687,42361.0,42356.0,0.4875556]
[1644668304425,0.45113461,42364.0,42356.0,0.4875556]
[1644668304629,0.00049687,42361.0,42356.0,0.4875556]
[1644668304829,0.059052,42360.0,42351.0,0.1129]
[1644668305030,0.059052,42360.0,42342.0,0.1448]
[1644668305031,0.0025,42358.0,42342.0,0.05]
[1644668305232,0.30363461,42358.0,42342.0,0.05]
[1644668305629,0.40363461,42358.0,42342.0,0.05]
[1644668305829,0.00049691,42353.0,42345.0,0.19641851]
[1644668306632,0.00049691,42353.0,42344.0,0.9575]
[1644668306633,0.0025,42352.0,42344.0,0.9575]
[1644668306831,0.0025,42352.0,42344.0,0.5664]
[1644668307029,0.00049692,42351.0,42345.0,0.3]
[1644668307230,0.00049692,42351.0,42341.0,0.3475]
[1644668307630,0.00049692,42351.0,42344.0,0.08676616]
[1644668308030,0.0973,42356.0,42347.0,0.22048218]
[1644668308281,0.00049693,42350.0,42342.0,0.3]
[1644668308479,0.00049693,42350.0,42340.0,0.1209]
[1644668308680,0.0025,42349.0,42340.0,0.1209]
[1644668308878,0.00049693,42350.0,42340.0,0.1209]
[1644668309279,0.0473,42353.0,42344.0,0.25663562]
[1644668309480,0.0025,42351.0,42344.0,0.25663562]
[1644668309680,0.0025,42351.0,42343.0,0.20364365]
[1644668310782,0.0473,42353.0,42345.0,0.22720475]
[1644668311680,0.0025,42352.0,42345.0,0.22720475]
[1644668311931,0.0004964,42351.0,42345.0,0.22720475]
[1644668313026,0.05,42354.0,42345.0,0.22720475]
[1644668313027,0.0004964,42350.0,42345.0,0.22720475]
[1644668314026,0.35129645,42357.0,42345.0,0.22720475]
[1644668314228,0.00049641,42350.0,42345.0,0.22710007]
[1644668315325,0.61285145,42358.0,42345.0,0.22710007]
[1644668315529,0.00049641,42350.0,42345.0,0.22710007]
[1644668316373,0.05,42358.0,42345.0,0.22710007]
[1644668316574,0.45129645,42358.0,42345.0,0.22710007]
[1644668316773,0.00049641,42350.0,42345.0,0.22710007]
[1644668317373,0.00049641,42350.0,42346.0,0.29073384]
[1644668317773,0.35379645,42358.0,42346.0,0.29073384]
[1644668317974,0.0025,42358.0,42353.0,0.20785411]
[1644668318574,0.0525,42358.0,42353.0,0.20785411]
[1644668318775,0.05,42358.0,42352.0,0.07390908]
[1644668318975,0.0025,42355.0,42345.0,0.1192]
[1644668319424,0.06156,42355.0,42345.0,0.1192]
[1644668319626,0.0025,42355.0,42345.0,0.1192]
[1644668319825,0.35129645,42356.0,42352.0,0.24648012]
[1644668320027,0.05,42356.0,42352.0,0.24648012]
[1644668320227,0.15,42356.0,42352.0,0.24648012]
[1644668321429,0.05049637,42356.0,42352.0,0.24648012]
[1644668321630,0.05049637,42356.0,42345.0,0.1192]
[1644668321829,0.35179282,42356.0,42345.0,0.1192]
[1644668322027,0.40179282,42356.0,42345.0,0.1192]
[1644668322226,0.50179282,42356.0,42345.0,0.1192]
[1644668322427,0.0025,42354.0,42346.0,0.0809025]
[1644668322629,0.0025,42354.0,42349.0,0.21315733]
[1644668322630,0.00049639,42353.0,42349.0,0.21315733]
[1644668323678,0.05,42354.0,42349.0,0.21315733]
[1644668323879,0.00049639,42353.0,42349.0,0.21315733]
[1644668324880,0.35129645,42354.0,42349.0,0.21315733]
[1644668325080,0.00049639,42353.0,42349.0,0.21315733]
[1644668326083,0.35129645,42354.0,42349.0,0.21315733]
[1644668326283,0.00049639,42353.0,42349.0,0.21315733]
[1644668327322,0.35129645,42354.0,42349.0,0.21315733]
[1644668327522,0.00049639,42353.0,42349.0,0.21315733]
[1644668328425,0.35129645,42354.0,42346.0,0.0809025]
[1644668328728,0.00049639,42353.0,42346.0,0.0809025]
[1644668329725,0.35129645,42354.0,42346.0,0.0809025]
[1644668329924,0.0004964,42352.0,42347.0,0.23051195]
[1644668330875,0.40129645,42353.0,42347.0,0.23051195]
[1644668331074,0.0004964,42352.0,42347.0,0.23051195]
[1644668331677,0.0498,42351.0,42345.0,0.1192]
[1644668331879,0.35129645,42350.0,42335.0,0.3726]
[1644668332079,0.35129645,42350.0,42336.0,0.12313117]
[1644668332278,0.40129645,42350.0,42337.0,0.00023117]
[1644668332478,0.40179285,42350.0,42337.0,0.29420079]
[1644668332678,0.40179285,42350.0,42340.0,0.26863782]
[1644668332879,0.35129645,42349.0,42344.0,0.07084837]
[1644668333380,0.35129645,42349.0,42340.0,0.26863782]
[1644668333679,0.0025,42348.0,42340.0,0.26863782]
[1644668333981,0.45179286,42349.0,42340.0,0.26863782]
[1644668334423,0.35129645,42349.0,42340.0,0.26863782]
[1644668334625,0.1,42349.0,42340.0,0.26863782]
[1644668334826,0.00049642,42347.0,42340.0,0.26863782]
[1644668335224,0.00049642,42347.0,42341.0,0.08248467]
[1644668335424,0.00299642,42347.0,42340.0,0.26863782]
[1644668335623,0.0025,42347.0,42340.0,0.26863782]
[1644668336026,0.00049643,42346.0,42340.0,0.26863782]
[1644668336425,0.00049643,42346.0,42341.0,0.08767572]
[1644668336824,0.0025,42347.0,42341.0,0.08767572]
[1644668337225,0.00049643,42346.0,42341.0,0.08767572]
[1644668337925,0.00049643,42346.0,42341.0,0.08761111]
[1644668338176,0.0025,42347.0,42341.0,0.08761111]
[1644668338374,0.00049643,42346.0,42341.0,0.08761111]
[1644668339279,0.50129645,42349.0,42341.0,0.08761111]
[1644668339476,0.00049643,42346.0,42341.0,0.08761111]
[1644668339879,0.00049643,42346.0,42342.0,0.28554401]
[1644668340478,0.35129645,42352.0,42342.0,0.28554401]
[1644668340676,0.35129645,42351.0,42350.0,0.22200243]
[1644668340878,0.35129645,42352.0,42350.0,0.08248087]
[1644668341944,0.40129645,42352.0,42350.0,0.08248087]
[1644668342137,0.55129645,42352.0,42350.0,0.08248087]
[1644668342335,0.55129645,42352.0,42339.0,0.68463884]
[1644668342336,0.02606257,42351.0,42336.0,0.31180019]
[1644668342541,0.02606257,42351.0,42334.0,0.1177]
[1644668342542,0.0025,42339.0,42335.0,0.37283117]
[1644668342737,0.0025,42339.0,42335.0,0.00023117]
[1644668342738,0.0473,42338.0,42335.0,0.00023117]
[1644668342937,0.0498,42338.0,42334.0,0.00023117]
[1644668343137,0.0498,42338.0,42331.0,0.00023117]
[1644668343334,0.0498,42338.0,42326.0,0.1141]
[1644668343335,0.0498,42338.0,42329.0,0.23629361]
[1644668343736,0.0498,42338.0,42330.0,0.06476439]
[1644668343937,0.059088,42336.0,42330.0,0.06499556]
[1644668344138,0.0473,42335.0,42330.0,0.06499556]
[1644668344550,0.0973,42335.0,42330.0,0.06499556]
[1644668345041,0.0973,42335.0,42330.0,0.00023117]
[1644668345240,0.0973,42335.0,42329.0,0.23629361]
[1644668345445,0.36387272,42335.0,42329.0,0.23629361]
[1644668345716,0.36436871,42335.0,42329.0,0.23629361]
[1644668346014,0.46436871,42335.0,42328.0,0.00023117]
[1644668346215,0.51436871,42335.0,42327.0,0.00023117]
[1644668346416,0.46637272,42335.0,42326.0,0.1141]
[1644668346614,0.00027494,42333.0,42326.0,0.1141]
[1644668346815,0.0473,42332.0,42326.0,0.1141]
[1644668347019,0.0473,42332.0,42327.0,0.20051035]
[1644668347219,0.00027494,42333.0,42332.0,0.09459999]
[1644668347614,0.0025,42336.0,42332.0,0.09459999]
[1644668347817,0.04757494,42335.0,42332.0,0.09459999]
[1644668348016,0.10666194,42335.0,42332.0,0.09459999]
[1644668348217,0.0025,42333.0,42332.0,0.09459999]
[1644668348416,0.0498,42333.0,42332.0,0.09459999]
[1644668348916,0.0025,42333.0,42332.0,0.09459999]
[1644668349529,0.0498,42333.0,42332.0,0.09459999]
[1644668349733,0.3277558,42333.0,42332.0,0.09459999]
[1644668349931,0.3777558,42333.0,42332.0,0.09459999]
[1644668350129,0.4777558,42333.0,42332.0,0.09459999]
[1644668351136,0.8790558,42333.0,42332.0,0.09459999]
[1644668351341,0.35163182,42335.0,42332.0,0.42792199]
[1644668351537,0.00049551,42335.0,42333.0,0.333322]
[1644668351735,0.00049551,42335.0,42332.0,0.09459999]
[1644668352133,0.0473,42334.0,42332.0,0.09459999]
[1644668352340,0.29041673,42334.0,42332.0,0.09459999]
[1644668352534,0.24311673,42334.0,42332.0,0.09459999]
[1644668352737,0.22745843,42335.0,42332.0,0.09459999]
[1644668352738,0.059088,42335.0,42332.0,0.09459999]
[1644668352933,0.05,42336.0,42332.0,0.09459999]
[1644668353177,0.1,42336.0,42332.0,0.09459999]
[1644668353381,0.05,42335.0,42332.0,0.09459999]
[1644668353578,0.05,42336.0,42332.0,0.09459999]
[1644668353780,0.19224209,42334.0,42332.0,0.09459999]
[1644668354181,0.1,42334.0,42332.0,0.09459999]
[1644668354580,0.05,42335.0,42332.0,0.09459999]
[1644668355182,0.05,42335.0,42332.0,0.2909229]
[1644668355381,0.05047409,42336.0,42332.0,0.29115407]
[1644668355580,0.00047409,42336.0,42332.0,0.29115407]
[1644668355880,0.00047409,42336.0,42332.0,0.09483116]
[1644668356080,0.00047409,42336.0,42332.0,0.09459999]
[1644668357440,0.218175,42337.0,42332.0,0.09459999]
[1644668357638,0.00047409,42336.0,42332.0,0.09459999]
[1644668358439,0.05047409,42336.0,42332.0,0.09459999]
[1644668358641,0.05,42336.0,42332.0,0.09459999]
[1644668358839,0.05047409,42336.0,42332.0,0.09459999]
[1644668359642,0.0473,42335.0,42332.0,0.09459999]
[1644668359843,0.0973,42335.0,42332.0,0.09459999]
[1644668360680,0.23446491,42333.0,42332.0,0.09459999]
[1644668360884,0.1,42333.0,42332.0,0.09459999]
[1644668363286,0.34373287,42334.0,42332.0,0.09459999]
[1644668363287,0.44373287,42334.0,42332.0,0.09459999]
[1644668363485,0.05,42333.0,42332.0,0.09459999]
[1644668363685,0.44373287,42334.0,42332.0,0.09459999]
[1644668363884,0.49103287,42334.0,42332.0,0.09459999]
[1644668364086,0.60922187,42334.0,42332.0,0.09459999]
[1644668365334,0.60922187,42334.0,42332.0,0.05895702]
[1644668368040,0.44373287,42334.0,42332.0,0.05895702]
[1644668368281,0.19988816,42334.0,42332.0,0.05895702]
[1644668368680,0.19988816,42334.0,42332.0,0.03330188]
[1644668368681,0.09988816,42334.0,42332.0,0.03330188]
[1644668368880,0.05958376,42335.0,42332.0,0.03330188]
[1644668368881,0.10958376,42335.0,42332.0,0.03330188]
[1644668369082,0.75,42333.0,42322.0,0.00023117]
[1644668369284,0.059109,42329.0,42320.0,0.00023117]
[1644668369483,0.106409,42329.0,42319.0,0.12383117]
[1644668369682,0.05,42327.0,42319.0,0.12432108]
[1644668370084,0.05,42327.0,42319.0,0.00072108]
[1644668370686,0.05,42327.0,42319.0,0.00023117]
[1644668370983,0.05,42327.0,42319.0,0.00048988]
[1644668370984,0.00048981,42325.0,42319.0,0.00048988]
[1644668371184,0.00048981,42325.0,42319.0,0.00072105]
[1644668371789,0.05,42327.0,42319.0,0.00023117]
[1644668372031,0.00049166,42324.0,42319.0,0.00049172]
[1644668372230,0.00049166,42324.0,42319.0,0.00072289]
[1644668372433,0.00049166,42324.0,42319.0,0.00049172]